Cogmind - Beta 17 @@@ ROGUE MODE // 2026.08.20 @ 17:21:05 Player: TheSkyeDoctor Result: Self-destructed Performance ------------- Evolutions (5) 2500 Regions Visited (6) 1200 Robots Destroyed (40) 200 Value Destroyed (907) 907 Prototype IDs (2) 40 Alien Tech Used (0) 0 Bonus (-9) -9 TOTAL SCORE: 4838 Bonus ------- Friendly Fire -9 Cogmind --------- Core Integrity 1000/1000 Matter 275/300 Energy 750/750 System Corruption 0% Temperature Cool (0) Movement Flying (114) Ox1 Location -5/Factory Parts ------- > --- POWER (1) -------- F-cell Engine > --- PROPULSION (6) --- Xenon Bombardment Thruster Xenon Bombardment Thruster Xenon Bombardment Thruster > --- UTILITY (8) ------ High-capacity Battery Advanced Visual Processing Unit Improved Signal Interpreter Improved Terrain Scanner Improved Terrain Scan Processor Seismic Detector Hacking Suite > --- WEAPON (2) ------- Heavy Flak Cannon Heavy Flak Cannon > --- INVENTORY (5) ---- F-cell Engine Advanced Heat Sink Matter Compressor (250) Proton Missile Launcher Peak State ------------ > --- POWER ------------ Light Nuclear Core > --- PROPULSION ------- Armored Huge Wheel Armored Huge Wheel > --- UTILITY ---------- Small Storage Unit High-capacity Battery Advanced Visual Processing Unit Improved Signal Interpreter Improved Terrain Scanner Improved Terrain Scan Processor Seismic Detector Hacking Suite > --- WEAPON ----------- Heavy Flak Cannon Heavy Flak Cannon > --- INVENTORY -------- Micro Nuclear Core Xenon Bombardment Thruster Xenon Bombardment Thruster Xenon Bombardment Thruster Matter Compressor Spread Laser Proton Missile Launcher [Rating: 49] Favorites ----------- Power Micro Nuclear Core Engine Ion Engine Power Core Micro Nuclear Core Propulsion Armored Huge Wheel Treads Light Treads Wheel Armored Huge Wheel Flight Unit Xenon Bombardment Thruster Utility Small Storage Unit Device Seismic Detector Storage Small Storage Unit Processor Advanced Visual Processing Unit Hackware Hacking Suite Protection Medium Armor Plating Weapon Spread Laser Energy Gun Spread Laser Ballistic Gun Gauss Rifle Ballistic Cannon Heavy Flak Cannon Launcher Grenade Launcher Build | -11 -10 -9 -8 -7 -6 -5 ------- Run | Yrd Mat Mat Mat Fac Fac Fac Slots Evolved 10 | . . 2 2 2 2 2 Power . | . . . . . . . Propulsion 4 | . . 1 1 . . 2 Utility 6 | . . 1 1 2 2 . Weapon . | . . . . . . . Parts Attached 39 | 7 2 9 5 6 10 . Power 6 | 1 . 1 1 1 2 . Engine 4 | 1 . 1 . 1 1 . Core 2 | . . . 1 . 1 . Reactor . | . . . . . . . Propulsion 11 | 2 1 2 1 2 3 . Treads 3 | 1 . 1 1 . . . Leg . | . . . . . . . Wheel 5 | 1 1 1 . 2 . . Hover . | . . . . . . . Flight 3 | . . . . . 3 . Utility 12 | 2 . 2 2 3 3 . Device 4 | 1 . . 1 1 1 . Storage 2 | 1 . . . 1 . . Processor 3 | . . . 1 1 1 . Hackware 1 | . . . . . 1 . Protection 2 | . . 2 . . . . Artifact . | . . . . . . . Weapon 10 | 2 1 4 1 . 2 . Energy Gun 3 | 1 . 2 . . . . Energy Cannon . | . . . . . . . Ballistic Gun 3 | 1 1 . 1 . . . Ballistic Cannon 2 | . . . . . 2 . Launcher 2 | . . 2 . . . . Special Weapon . | . . . . . . . Impact Weapon . | . . . . . . . Slashing Weapon . | . . . . . . . Piercing Weapon . | . . . . . . . Special Melee Weapon . | . . . . . . . Unidentified Prototypes 2 | . . 1 . . 1 . Parts Lost 11 | . 4 2 . 1 4 . Power . | . . . . . . . Propulsion 5 | . 1 2 . . 2 . Utility 3 | . 1 . . 1 1 . Weapon 3 | . 2 . . . 1 . Highest Loss Streak 3 | . 3 2 . 1 2 . To Critical Strikes 1 | . . . . . 1 . Average Backups 6 | 2 6 4 7 8 6 . Power . | . 1 1 . . . . Propulsion 2 | 1 1 . 3 3 2 . Utility 2 | . 2 2 3 3 1 . Weapon 1 | . . . 1 1 1 . Tool/Special . | . . . . . . . Unused Backups 8 | . . . 2 1 1 4 Power 2 | . . . 1 . . 1 Propulsion 1 | . . . . 1 . . Utility 3 | . . . . . 1 2 Weapon 2 | . . . 1 . . 1 Tool/Special . | . . . . . . . Average Slot Usage (%) 82 | . 91 71 84 83 81 . Engine 3 | . 14 11 . . 1 . Core 5 | . . . 8 6 4 . Treads 6 | . 14 17 15 . . . Wheel 12 | . 13 11 9 14 9 . Device 11 | . 12 . 6 14 12 . Storage 12 | . 14 11 9 13 13 . Processor 10 | . . . 6 14 19 . Protection 3 | . . 12 11 . . . Energy Gun 7 | . 11 2 14 7 3 . Ballistic Gun 5 | . 11 . 3 7 1 . Peak Build Rating 49 | 7 8 10 24 41 49 . Average Rating 28 | 5 6 6 20 39 42 . On Entrance 18 | . 7 4 10 24 37 47 Avg Prop Armor Cover (%) 14 | 15 14 15 11 14 . . Naked Turns . | . . . . . . . Heaviest Build 39 | 14 15 25 30 31 39 . Greatest Support 56 | 20 10 20 10 56 56 . Greatest Overweight (x) 2 | 1 1 2 2 2 1 . Average Overweight (x) . | . . 1 2 . . . Largest Inventory Capacity 8 | 8 8 8 8 8 8 . Average Capacity 7 | 7 8 8 8 8 7 . Most Carried 8 | 4 8 6 8 8 8 . Average Carried 7 | 2 6 4 7 7 6 . Final Capacity 8 | 8 8 8 8 8 5 5 Final Carried 8 | 4 6 6 8 8 4 4 Class Distribution -------------------- 90% | Mutant 9% | Skirmisher Dominant Class ---------------- Mutant | -10/Materials Mutant | -9/Materials Mutant | -8/Materials Mutant | -7/Factory Skirmisher | -6/Factory Skirmisher | -5/Factory Resources | -11 -10 -9 -8 -7 -6 -5 ----------- Run | Yrd Mat Mat Mat Fac Fac Fac Matter Collected 1515 | 280 8 83 464 236 444 . Remotely . | . . . . . . . Salvage Created 1129 | 159 67 153 372 222 156 . Parts 66 | 12 2 10 22 16 4 . Haulers Intercepted 4 | . . . 2 . 2 . Recyclers Shooed 3 | . . . . 1 2 . Parts Field Recycled . | . . . . . . . Retrieved Matter . | . . . . . . . Parts Self-Destructed . | . . . . . . . Prevented . | . . . . . . . Parts Restored . | . . . . . . . Kills | -11 -10 -9 -8 -7 -6 -5 ------- Run | Yrd Mat Mat Mat Fac Fac Fac Combat Hostiles Destroyed 27 | . 3 12 8 4 . . Guns 17 | . 3 2 8 4 . . AOE 10 | . . 10 . . . . Classes Destroyed 12 | 3 2 3 2 2 . . Worker 2 | 1 . 1 . . . . Builder 1 | . . . . 1 . . Tunneler 4 | 4 . . . . . . Hauler 4 | . . . 2 . 2 . Recycler 1 | 1 . . . . . . Watcher 1 | . . 1 . . . . Swarmer 12 | . 2 7 3 . . . Grunt 5 | . 1 3 1 . . . Brawler 1 | . . 1 . . . . Sentry 6 | . . 1 2 3 . . Hunter 2 | . . . 2 . . . Programmer 1 | . . . . 1 . . Best Kill Streak 10 | 4 2 10 5 2 1 . Combat Bots Only 8 | . 2 8 5 1 . . Max Kills in Single Turn 3 | 1 2 3 2 1 1 . Gunslinging 1 | . 1 . . . . . Exploded 2 | . . 2 . . . . Melee . | . . . . . . . Uniques/NPCs Destroyed . | . . . . . . . Combat | -11 -10 -9 -8 -7 -6 -5 -------- Run | Yrd Mat Mat Mat Fac Fac Fac Hostile Shots Fired 332 | . 49 32 36 183 32 . Missed 94 | . 5 10 10 62 7 . Hits 238 | . 44 22 26 121 25 . Projectile 238 | . 44 22 26 121 25 . Critical Strikes 3 | . . . 2 . 1 . Damage Taken 2311 | . 595 293 318 707 398 . Core 446 | . 159 34 78 113 62 . Absorbed by Shields 388 | . . . 92 296 . . Core Remaining (%) 81 | 100 36 91 85 83 92 . Volleys Fired 127 | 11 24 23 23 27 19 . Largest 2 | 2 2 2 2 2 2 . Hottest 115 | 70 70 115 115 93 93 . Shots Fired 214 | 22 46 27 46 44 29 . Gun 179 | 22 46 10 46 44 11 . Cannon 18 | . . . . . 18 . Launcher 17 | . . 17 . . . . Special . | . . . . . . . Kinetic 91 | 11 24 . 10 27 19 . Thermal 106 | 11 22 10 36 17 10 . Explosive 17 | . . 17 . . . . Electromagnetic . | . . . . . . . Robot Hit Streak 12 | 7 5 5 7 9 12 . Robot Miss Streak 10 | 1 3 3 10 5 6 . Penetration Max 1 | . . . . 1 . . Secondary Targets 3 | . 1 . 2 . . . Max Gunslinging Chain 1 | . 1 . 1 . . . Shots Hit Robots 149 | 14 27 17 36 34 21 . Core Hits 125 | 8 7 24 38 21 27 . Critical Kills . | . . . . . . . Critical Parts Destroyed 1 | . . . 1 . . . Critical Strikes 6 | . 3 . 3 . . . Burn 5 | . 3 . 2 . . . Destroy 1 | . . . 1 . . . Melee Attacks . | . . . . . . . Impact . | . . . . . . . Slashing . | . . . . . . . Piercing . | . . . . . . . Sneak Attacks . | . . . . . . . Combat Hostiles . | . . . . . . . Follow-up Attacks . | . . . . . . . Damage Inflicted 2915 | 155 345 906 469 590 450 . Guns 1797 | 155 340 82 463 590 167 . Cannons 283 | . . . . . 283 . Explosions 824 | . . 824 . . . . Melee . | . . . . . . . Ramming 11 | . 5 . 6 . . . Kinetic 1012 | 68 203 . 75 362 304 . Thermal 1068 | 87 137 82 388 228 146 . Explosive 824 | . . 824 . . . . Electromagnetic . | . . . . . . . Impact . | . . . . . . . Slashing . | . . . . . . . Piercing . | . . . . . . . Highest Corruption 2 | . . . . 2 . . Average Corruption 2 | . . . . 2 . . Corruption Purged . | . . . . . . . Corruption Blocked . | . . . . . . . Effects 4 | . . . . 4 . . Message Errors 1 | . . . . 1 . . Matter Fused 2 | . . . . 2 . . Data Loss (minor) 1 | . . . . 1 . . Overload Shots . | . . . . . . . Overflow Damage 26 | . . 26 . . . . Projectiles . | . . . . . . . Explosions 26 | . . 26 . . . . Melee . | . . . . . . . Knockbacks 1 | . . . . . 1 . Impact . | . . . . . . . Kinetic 1 | . . . . . 1 . Secondary . | . . . . . . . Self-Inflicted Damage 66 | . . 63 3 . . . Shots 4 | . . 4 . . . . Rammed 3 | . 2 . 1 . . . Targets Rammed 3 | . 2 . 1 . . . Kicked . | . . . . . . . Crushed . | . . . . . . . Highest Temperature 339 | 80 339 114 277 123 24 . Average Temperature 81 | 32 144 39 93 44 10 . Received Heat Transfer 693 | . 312 72 49 170 90 . Effects 1 | . . . 1 . . . Interference 1 | . . . 1 . . . Siege Activations . | . . . . . . . Martial Activations . | . . . . . . . Shielding Activations . | . . . . . . . Robots Disrupted . | . . . . . . . Combat Hostiles . | . . . . . . . Robots Corrupted . | . . . . . . . Combat Hostiles . | . . . . . . . Parts Fried . | . . . . . . . Impact Corruptions . | . . . . . . . Robots Melted . | . . . . . . . Combat Hostiles . | . . . . . . . Parts Melted 2 | . . 1 1 . . . Heat Transferred 2452 | 259 629 232 892 265 175 . Parts Sabotaged . | . . . . . . . Parts Stolen . | . . . . . . . Parts Stripped . | . . . . . . . Power Chain Reactions . | . . . . . . . Alert | -11 -10 -9 -8 -7 -6 -5 ------- Run | Yrd Mat Mat Mat Fac Fac Fac Maximum Alert Level 1 | . . 1 1 . . . Low Security (%) 94 | 100 100 55 92 100 100 . Level 1 5 | . . 44 7 . . . Level 2 . | . . . . . . . Level 3 . | . . . . . . . Level 4 . | . . . . . . . Level 5 . | . . . . . . . High Security . | . . . . . . . Max Security . | . . . . . . . Peak Influence 292 | 10 65 292 210 75 22 . Initial 122 | . 3 1 122 75 22 . Average 38 | 3 13 121 133 12 2 . Influence Increases 888 | 30 100 382 225 127 24 . Destroy 0b10 Robot/C 540 | . 60 240 160 80 . . Destroy 0b10 Robot/NC 65 | 30 . 10 10 5 10 . Destroy Leader 160 | . 10 52 54 40 4 . Successful Hack 10 | . . . . . 10 . Disable Machine 15 | . . 15 . . . . Destroy Structure 68 | . . 65 1 2 . . Lose Combat Pursuer 30 | . 30 . . . . . Influence Decreases 888 | 25 100 95 350 247 71 . Entered New Map 293 | . 2 4 170 92 25 . Time Decay 555 | 25 88 71 180 145 46 . Lost Part 40 | . 10 20 . 10 . . Squads Dispatched 10 | . . 2 2 4 2 . Investigation 1 | . . . . . 1 . Extermination 2 | . . . . 2 . . Reinforcement 5 | . . 2 2 . 1 . Assault . | . . . . . . . Garrison 2 | . . . . 2 . . Intercept . | . . . . . . . Searches Triggered . | . . . . . . . Construction Impeded . | . . . . . . . Haulers Reinforced 1 | . . . . . 1 . Active Scanning Responses . | . . . . . . . Cargo Convoy Interrupts . | . . . . . . . Stealth | -11 -10 -9 -8 -7 -6 -5 --------- Run | Yrd Mat Mat Mat Fac Fac Fac Distress Signals 1 | . . . . . 1 . Communications Jammed . | . . . . . . . Distress Signals . | . . . . . . . Times Spotted 58 | . 7 14 12 11 14 . Peak Tracking Total 8 | . 4 4 8 2 5 . Tactical Retreats 2 | . 2 . . . . . Traps | -11 -10 -9 -8 -7 -6 -5 ------- Run | Yrd Mat Mat Mat Fac Fac Fac Traps Triggered 3 | . . . . 3 . . Indirectly . | . . . . . . . Trap Hack Attempts . | . . . . . . . Triggered . | . . . . . . . Disarmed . | . . . . . . . Reprogrammed . | . . . . . . . Reused . | . . . . . . . Traps Extracted . | . . . . . . . Installed . | . . . . . . . Triggered . | . . . . . . . Machines | -11 -10 -9 -8 -7 -6 -5 ---------- Run | Yrd Mat Mat Mat Fac Fac Fac Machines Disabled 1 | . . 1 . . . . Max in Single Turn 1 | . . 1 . . . . Machines Repaired . | . . . . . . . Machines Dismantled . | . . . . . . . Machines Sabotaged . | . . . . . . . Overloaded Fab Kills . | . . . . . . . Hacking | -11 -10 -9 -8 -7 -6 -5 --------- Run | Yrd Mat Mat Mat Fac Fac Fac Machines Accessed 4 | . 1 1 . . 2 . Terminals 3 | . 1 . . . 2 . Fabricators . | . . . . . . . Repair Stations . | . . . . . . . Recycling Units . | . . . . . . . Scanalyzers 1 | . . 1 . . . . Garrison Access . | . . . . . . . Total Hacks 7 | . 1 2 . . 4 . Successful 3 | . . 1 . . 2 . Failed 3 | . 1 . . . 2 . Catastrophic 2 | . 1 . . . 1 . Database Lockouts 1 | . . 1 . . . . Manual 5 | . 1 . . . 4 . Terminals 5 | . 1 . . . 4 . Fabricators . | . . . . . . . Repair Stations . | . . . . . . . Recycling Units . | . . . . . . . Scanalyzers 2 | . . 2 . . . . Garrison Access . | . . . . . . . Terminal Hacks . | . . . . . . . Fabricator Hacks . | . . . . . . . Repair Station Hacks . | . . . . . . . Recycling Unit Hacks . | . . . . . . . Scanalyzer 1 | . . 1 . . . . Retrieve Study 1 | . . 1 . . . . Garrison Access Hacks . | . . . . . . . Unauthorized Hacks 2 | . . . . . 2 . Terminals 2 | . . . . . 2 . Botnet 2 | . . . . . 2 . Fabricators . | . . . . . . . Repair Stations . | . . . . . . . Recycling Units . | . . . . . . . Scanalyzers . | . . . . . . . Garrison Access . | . . . . . . . Data Cores Recovered . | . . . . . . . Used . | . . . . . . . Hacking Detections 4 | . 1 1 . . 2 . Full Trace Events 1 | . . . . . 1 . Feedback Events . | . . . . . . . Feedback Blocked . | . . . . . . . Robot Schematics Acquired . | . . . . . . . Robots Built . | . . . . . . . Authchips . | . . . . . . . Time . | . . . . . . . Total Robot Build Rating . | . . . . . . . Part Schematics Acquired . | . . . . . . . Parts Built . | . . . . . . . Authchips . | . . . . . . . Time . | . . . . . . . Total Part Build Rating . | . . . . . . . Part Studies Acquired 1 | . . 1 . . . . Parts Repaired . | . . . . . . . Time . | . . . . . . . Parts Recycled . | . . . . . . . Recycled Matter . | . . . . . . . Retrieved Matter . | . . . . . . . Retrieved Components . | . . . . . . . Parts Scanalyzed . | . . . . . . . Part Schematics Acquired . | . . . . . . . Parts Damaged . | . . . . . . . Bothacking | -11 -10 -9 -8 -7 -6 -5 ------------ Run | Yrd Mat Mat Mat Fac Fac Fac Used RIF Installer . | . . . . . . . Robots Hacked . | . . . . . . . Non-combat . | . . . . . . . Combat . | . . . . . . . Robot Hacks Applied . | . . . . . . . Relay Couplers Released . | . . . . . . . Fabnet Peak Effective % . | . . . . . . . Robots Rewired . | . . . . . . . Allies Hacked . | . . . . . . . Hacks Repelled . | . . . . . . . Allies | -11 -10 -9 -8 -7 -6 -5 -------- Run | Yrd Mat Mat Mat Fac Fac Fac Total Allies . | . . . . . . . Largest Group . | . . . . . . . Highest-Rated Group . | . . . . . . . Highest-Rated Ally . | . . . . . . . Total Orders . | . . . . . . . Ally Attacks . | . . . . . . . Total Damage . | . . . . . . . Kills . | . . . . . . . Allies Corrupted . | . . . . . . . Allies Melted . | . . . . . . . Intel | -11 -10 -9 -8 -7 -6 -5 ------- Run | Yrd Mat Mat Mat Fac Fac Fac Active Infowar (turns) 2311 | 47 281 . 278 1322 383 . Optics 1983 | . . . 278 1322 383 . Terrain 381 | . . . . . 381 . Seismic 1961 | 47 281 . . 1250 383 . Robot Analysis Total . | . . . . . . . Derelict Logs Recovered . | . . . . . . . Drone Launches . | . . . . . . . Drone Recoveries . | . . . . . . . Exploration | -11 -10 -9 -8 -7 -6 -5 ------------- Run | Yrd Mat Mat Mat Fac Fac Fac Turns Passed 2816 | 114 322 298 377 1322 383 . Spaces Moved 1885 | 74 264 269 266 734 278 . Core 2 | 2 . . . . . . Treads 2 | 2 . . . . . . Legs . | . . . . . . . Wheels 1879 | 70 264 269 266 734 276 . Hover . | . . . . . . . Flight 2 | . . . . . 2 . Fastest Speed 50 | 50 80 70 100 100 100 . Average Speed 97 | 93 92 85 100 100 106 . Slowest Speed 160 | 160 95 100 100 115 115 . Overloaded Moves . | . . . . . . . Propulsion Burnouts . | . . . . . . . Robots Hopped . | . . . . . . . Potential Cave-ins . | . . . . . . . Cave-ins Triggered . | . . . . . . . Exploration Rate (%) 20 | 3 43 33 25 25 12 1 Regions Visited 6 Branch Regions . Pre-discovered Areas . | . . . . . . . Known Exits Taken 2 | . . . . 1 1 . Unknown Exits Taken 4 | 1 1 1 1 . . . Scrap Searched . | . . . . . . . Spaces Dug . | . . . . . . . Terrain Destroyed 102 | . . 102 . . . . Melee . | . . . . . . . Projectile . | . . . . . . . AOE 102 | . . 102 . . . . Terrain Rammed . | . . . . . . . Walls Destroyed . | . . . . . . . Machines Disabled . | . . . . . . . Actions | -11 -10 -9 -8 -7 -6 -5 --------- Run | Yrd Mat Mat Mat Fac Fac Fac Total 2645 | 95 296 308 333 1278 335 . Wait 546 | . 1 1 26 498 20 . Move 1879 | 73 263 268 265 733 277 . Hop . | . . . . . . . Pick Up 22 | 4 3 2 6 3 4 . Fast Attach 26 | 7 . 5 4 7 3 . Attach 11 | . 1 4 . . 6 . Detach 6 | . . 3 . 1 2 . Swap 5 | . 1 1 1 1 1 . Drop 20 | . 1 1 7 8 3 . Fire 127 | 11 24 23 23 27 19 . Melee . | . . . . . . . Ram 1 | . . . 1 . . . Kick . | . . . . . . . Crush 2 | . 2 . . . . . Escape Stasis . | . . . . . . . Rewire . | . . . . . . . Trap . | . . . . . . . Miscellaneous . | . . . . . . . Route ------- -11/Scrapyard -10/Materials -9/Materials -8/Materials -7/Factory -6/Factory -5/Factory History --------- Turn | Location | Event 26 | -11/Scrapyard | Discovered new exit (range 15) 115 | -11/Scrapyard | Entered Materials 327 | -10/Materials | Build established: Mutant 372 | -10/Materials | Core integrity fell below 50% 396 | -10/Materials | Lost 3 parts (1n2w) 427 | -10/Materials | Discovered new exit (range 13) 437 | -10/Materials | Entered another Materials area 437 | -9/Materials | Evolved 2 slots: Propulsion x1, Utility x1 447 | -9/Materials | Central database locked down 623 | -9/Materials | Destroyed 8 combat bots 649 | -9/Materials | Discovered new exit (range 12) 735 | -9/Materials | Entered another Materials area 735 | -8/Materials | Evolved 2 slots: Propulsion x1, Utility x1 1035 | -8/Materials | Met 7R-MNS 1080 | -8/Materials | Discovered new exit (range 6) 1112 | -8/Materials | Entered Factory 1112 | -7/Factory | Evolved 2 slots: Utility x2 1113 | -7/Factory | Caught up to 7R-MNS 2328 | -7/Factory | Garrison activated, responded to threat 2421 | -7/Factory | Discovered new exit (range 15) 2433 | -7/Factory | Identified exit to Factory 2434 | -7/Factory | Entered another Factory area 2434 | -6/Factory | Evolved 2 slots: Utility x2 2435 | -6/Factory | Caught up to 7R-MNS 2792 | -6/Factory | Discovered new exit (range 12) 2816 | -6/Factory | Identified exit to Factory 2817 | -6/Factory | Entered another Factory area 2817 | -5/Factory | Evolved 2 slots: Propulsion x2 2817 | -5/Factory | Self-destructed Last Messages --------------- 02741_ K-01 Serf collects debris. 02742_ R-10 Processor collects Prototype Hover Unit. 02746_ Acquired Prototype Engine. 02747_ Identified F-cell Engine. 02748_ R-10 Processor collects Carbon-fiber Leg. 02748_ Dropped Lgt. Nuclear Core. 02749_ Acquired 66 matter. 02751_ R-10 Processor collects Carbon-fiber Leg. 02751_ Acquired F-cell Engine. 02776_ K-01 Serf cleans the Subcomponent Replicator. 02792_ EXIT=FOUND 02798_ 7R-MNS exits level. 02812_ Arm. Huge Wheel destroyed. 02814_ Sml. Storage Unit destroyed. 02816_ EXIT=IDENTIFIED: FACTORY PARAMETERS=PROPULSION+2 LOCATION=FACTORY GOAL=ESCAPE Map ----- +----------------------------------------------------+ | ????????????????????????????????????????? | | ????????????????????????????????????????? | | ????????????????????????????????????????? | | ????????????????????????????????????????? | | ????????????????????????????????????????? | | ????????????????????????????????????????? | | ??????????????????????? ????????????????? | | ?????????????????????" ????????????????? | | ?????????????????????" ????????????????? | | ?????????????????????" ???????????????? | | ????????????????????? ???????????????? | | ????????????????????"" ???????????????? | | ????????????????????"" ???????????????? | | ????????????????????"" ???????????????? | | ??????????????????? ???????????????? | | ?????????????????" """ ???????????????? | | ?????????????????" """ ???????????????? | | ???????????????""" """ ###????????????? | | ??????????????? #????????????? | | ???????? ? ??? """ """ #????????????? | | ???????? """ """ #????????????? | | ?????????? """ """ #????????????? | | ???????????? #????????????? | | ????????????? """ #????????????? | | ?????????????? """ g ######???????? | | ???????????????""" "" @ o #???????? | | ?????????? Y" #???????? | | ?????????? "" +???????? | | ??????????? #???????? | | ???????????? #???????? | | ????????????###+############### #???????? | | ????????????????????????????????#???????? | | ????????????????????????????????????????? | | ????????????????????????????????????????? | | ????????????????????????????????????????? | | ????????????????????????????????????????? | | ????????????????????????????????????????? | | ????????????????????????????????????????? | | ????????????????????????????????????????? | | ????????????????????????????????????????? | | ????????????????????????????????????????? | | ????????????????????????????????????????? | | | | | | | | | | | | | | | | | +----------------------------------------------------+ Best States ------------- Heat Dissipation 37 Energy Generation 19 Energy Capacity 750 Matter Stores 300 Matter Capacity 300 Sight Range 20 Terrain Scan Range 16 Terrain Scan Density 110 Armor Coverage 375 Evasion (%) 46 Offensive Hacking 10 Item Schematics ----------------- None Robot Schematics ------------------ None Fabricated ------------ Nothing Repaired ---------- Nothing Studied --------- Wheel | -9/Materials | Hacked Alien Tech Used ----------------- None Achievements -------------- None Challenges ------------ None Game ------ Seed ReactiveTargetCyclogen Manual? 0 Play Time 00:20:10 Cumulative 166.8 hours Start 2026.08.20 @ 14:03:58 End 2026.08.20 @ 17:21:05 Sessions 1 Manual Loads 0 Difficulty Rogue Special Mode None Game No. 333 Rogue 333 Adventurer 0 Explorer 0 Win Type - Total 2 Types 2/0/0/0/0/0/0/0/0/0 Lore% 57 Gallery% 58 Achievement% 46 Wizard Run 0 Options --------- Layout 2 ASCII 0 Keyboard 1 Movement Arrows Keybinds 0 Fullscreen 1 Font 24/Smallcaps Map View 50x44 Zoom Use 0% Tactical HUD 1 Map Filters NONE Filters NONE Steam 1 RUN: cf233a79-f70b-4198-a951-a1214d3187f7